Cogmind - Beta 17 @@@ ROGUE MODE // 2026.07.31 @ 18:10:30 Player: DaddyWalrus Result: Destroyed by D-53 Grenadier with Mini Grenade Launcher Performance ------------- Evolutions (0) 0 Regions Visited (2) 400 Robots Destroyed (17) 85 Value Destroyed (307) 307 Prototype IDs (2) 40 Alien Tech Used (0) 0 Bonus (0) 0 TOTAL SCORE: 832 Bonus ------- None Cogmind --------- Core Integrity 0/250 Matter 138/300 Energy 238/265 System Corruption 0% Temperature Cool (27) Movement Treading (240) Ox1 Location -10/Mines Parts ------- > --- POWER (1) -------- Reinforced Ion Engine > --- PROPULSION (2) --- Light Treads > --- UTILITY (2) ------ Large Storage Unit Sensor Array > --- WEAPON (2) ------- Particle Gun Particle Gun > --- INVENTORY (15) --- Reinforced Ion Engine Light Treads Light Treads Wheel Wheel Large Matter Pod (29) Signal Interpreter EM Pulse Gun Medium Laser Particle Gun Particle Gun Peak State ------------ > --- POWER ------------ Reinforced Ion Engine > --- PROPULSION ------- Wheel Compact Wheel > --- UTILITY ---------- Large Storage Unit Sensor Array > --- WEAPON ----------- Particle Gun Light Assault Rifle > --- INVENTORY -------- Reinforced Ion Engine Aluminum Leg Wheel Wheel Compact Wheel Compact Wheel Large Matter Pod Signal Interpreter EM Pulse Gun EM Pulse Gun Medium Laser Particle Gun Particle Gun Grenade Launcher Grenade Launcher [Rating: 10] Favorites ----------- Power Light Ion Engine Engine Light Ion Engine Propulsion Light Treads Treads Light Treads Leg Aluminum Leg Wheel Wheel Utility Sensor Array Device Sensor Array Storage Large Storage Unit Weapon Light Assault Rifle Energy Gun Medium Laser Ballistic Gun Light Assault Rifle Launcher Grenade Launcher Build | -11 -10 -10 ------- Run | Yrd Mat Min Slots Evolved . | . . . Power . | . . . Propulsion . | . . . Utility . | . . . Weapon . | . . . Parts Attached 26 | 6 16 4 Power 3 | 1 2 . Engine 3 | 1 2 . Core . | . . . Reactor . | . . . Propulsion 9 | 2 6 1 Treads 4 | 2 1 1 Leg 1 | . 1 . Wheel 4 | . 4 . Hover . | . . . Flight . | . . . Utility 3 | 1 2 . Device 1 | . 1 . Storage 2 | 1 1 . Processor . | . . . Hackware . | . . . Protection . | . . . Artifact . | . . . Weapon 11 | 2 6 3 Energy Gun 8 | 2 4 2 Energy Cannon . | . . . Ballistic Gun 1 | . 1 . Ballistic Cannon . | . . . Launcher 2 | . 1 1 Special Weapon . | . . . Impact Weapon . | . . . Slashing Weapon . | . . . Piercing Weapon . | . . . Special Melee Weapon . | . . . Unidentified Prototypes . | . . . Parts Lost 9 | . 4 5 Power 1 | . 1 . Propulsion 4 | . 2 2 Utility . | . . . Weapon 4 | . 1 3 Highest Loss Streak 3 | . 3 3 To Critical Strikes . | . . . Average Backups 10 | 4 10 13 Power . | . . 1 Propulsion 4 | 2 4 4 Utility . | . . 2 Weapon 4 | 1 4 6 Tool/Special . | . . . Unused Backups 12 | . 3 9 Power 1 | . . 1 Propulsion 5 | . 1 4 Utility 2 | . . 2 Weapon 4 | . 2 2 Tool/Special . | . . . Average Slot Usage (%) 97 | . 97 95 Engine 13 | . 13 14 Treads 19 | . 18 23 Wheel 8 | . 8 3 Device 12 | . 11 14 Storage 14 | . 14 14 Energy Gun 14 | . 15 6 Ballistic Gun 12 | . 12 9 Peak Build Rating 10 | 6 10 10 Average Rating 7 | 4 7 8 On Entrance 5 | . 6 10 Avg Prop Armor Cover (%) 12 | . 12 . Naked Turns . | . . . Heaviest Build 35 | 12 35 35 Greatest Support 40 | 40 40 40 Greatest Overweight (x) 3 | . 3 3 Average Overweight (x) 1 | . 1 . Largest Inventory Capacity 15 | 8 15 15 Average Capacity 12 | 7 12 15 Most Carried 15 | 8 15 15 Average Carried 10 | 4 10 13 Final Capacity 15 | 8 15 15 Final Carried 15 | 6 15 11 Class Distribution -------------------- 100% | Mutant Dominant Class ---------------- Mutant | -10/Materials Mutant | -10/Mines Resources | -11 -10 -10 ----------- Run | Yrd Mat Min Matter Collected 491 | 180 305 6 Remotely . | . . . Salvage Created 437 | 20 370 47 Parts 28 | 5 23 . Haulers Intercepted . | . . . Recyclers Shooed 3 | . 3 . Parts Field Recycled . | . . . Retrieved Matter . | . . . Parts Self-Destructed . | . . . Prevented . | . . . Parts Restored . | . . . Kills | -11 -10 -10 ------- Run | Yrd Mat Min Combat Hostiles Destroyed 33 | . 14 19 Guns 11 | . 11 . AOE 22 | . 3 19 Classes Destroyed 6 | 1 4 1 Worker 1 | . 1 . Tunneler 1 | 1 . . Watcher 1 | . 1 . Swarmer 9 | . 9 . Grunt 5 | . 5 . Assembled 19 | . . 19 Best Kill Streak 19 | 1 4 19 Combat Bots Only 19 | . 3 19 Max Kills in Single Turn 7 | 1 2 7 Gunslinging . | . . . Exploded 7 | . 2 7 Melee . | . . . Uniques/NPCs Destroyed . | . . . Combat | -11 -10 -10 -------- Run | Yrd Mat Min Hostile Shots Fired 130 | . 97 33 Missed 36 | . 29 7 Hits 94 | . 68 26 Melee 2 | . . 2 Projectile 92 | . 68 24 AOE 12 | . . 12 Damage Taken 1458 | . 787 671 Core 251 | . 137 114 Absorbed by Shields . | . . . Core Remaining (%) 100 | 100 . . Volleys Fired 63 | 3 49 11 Largest 2 | 1 2 2 Hottest 130 | 40 90 130 Shots Fired 117 | 3 97 17 Gun 103 | 3 95 5 Cannon . | . . . Launcher 14 | . 2 12 Special . | . . . Kinetic 40 | . 37 3 Thermal 37 | . 35 2 Explosive 14 | . 2 12 Electromagnetic 26 | 3 23 . Robot Hit Streak 8 | 1 8 2 Robot Miss Streak 7 | 1 7 1 Penetration Max . | . . . Secondary Targets 2 | . 2 . Max Gunslinging Chain 1 | . 1 . Shots Hit Robots 69 | 2 60 7 Core Hits 64 | 1 25 38 Critical Kills . | . . . Critical Parts Destroyed . | . . . Critical Strikes 2 | . 2 . Burn 1 | . 1 . Corrupt 1 | . 1 . Melee Attacks . | . . . Impact . | . . . Slashing . | . . . Piercing . | . . . Sneak Attacks . | . . . Combat Hostiles . | . . . Follow-up Attacks . | . . . Damage Inflicted 2126 | 24 980 1122 Guns 714 | 24 667 23 Cannons . | . . . Explosions 1412 | . 313 1099 Melee . | . . . Ramming . | . . . Kinetic 170 | . 161 9 Thermal 388 | . 374 14 Explosive 1349 | . 250 1099 Electromagnetic 219 | 24 195 . Impact . | . . . Slashing . | . . . Piercing . | . . . Highest Corruption . | . . . Average Corruption . | . . . Corruption Purged . | . . . Corruption Blocked . | . . . Overload Shots . | . . . Overflow Damage 37 | . 4 33 Projectiles . | . . . Explosions 37 | . 4 33 Melee . | . . . Knockbacks . | . . . Impact . | . . . Kinetic . | . . . Secondary . | . . . Self-Inflicted Damage 64 | . . 64 Shots 2 | . . 2 Rammed 3 | 2 1 . Targets Rammed 3 | 2 1 . Kicked . | . . . Crushed . | . . . Highest Temperature 240 | . 240 51 Average Temperature 73 | . 80 26 Received Heat Transfer 349 | . 309 40 Siege Activations . | . . . Martial Activations . | . . . Shielding Activations . | . . . Robots Disrupted . | . . . Combat Hostiles . | . . . Robots Corrupted . | . . . Combat Hostiles . | . . . Parts Fried . | . . . Impact Corruptions . | . . . Robots Melted . | . . . Combat Hostiles . | . . . Parts Melted 1 | . 1 . Heat Transferred 1099 | . 1062 37 Parts Sabotaged . | . . . Parts Stolen . | . . . Parts Stripped . | . . . Power Chain Reactions 1 | . 1 . Alert | -11 -10 -10 ------- Run | Yrd Mat Min Maximum Alert Level . | . . . Low Security (%) 100 | 100 100 100 Level 1 . | . . . Level 2 . | . . . Level 3 . | . . . Level 4 . | . . . Level 5 . | . . . High Security . | . . . Max Security . | . . . Peak Influence 126 | 5 126 26 Initial 9 | . . 9 Average 34 | . 38 11 Influence Increases 501 | 5 443 53 Destroy 0b10 Robot/C 280 | . 280 . Destroy 0b10 Robot/NC 15 | 5 10 . Destroy Leader 62 | . 62 . Successful Hack 18 | . 18 . Disable Machine 15 | . 15 . Destroy Structure 66 | . 13 53 Lose Combat Pursuer 45 | . 45 . Influence Decreases 501 | 5 419 77 Entered New Map 15 | . . 15 Time Decay 412 | 5 379 28 Lost Part 74 | . 40 34 Squads Dispatched 2 | . 2 . Investigation 1 | . 1 . Extermination . | . . . Reinforcement 1 | . 1 . Assault . | . . . Garrison . | . . . Intercept . | . . . Searches Triggered . | . . . Construction Impeded . | . . . Haulers Reinforced . | . . . Active Scanning Responses . | . . . Cargo Convoy Interrupts . | . . . Stealth | -11 -10 -10 --------- Run | Yrd Mat Min Distress Signals 1 | . 1 . Communications Jammed . | . . . Distress Signals . | . . . Times Spotted 46 | . 23 23 Peak Tracking Total 19 | . 6 19 Tactical Retreats 2 | . 2 . Traps | -11 -10 -10 ------- Run | Yrd Mat Min Traps Triggered 1 | . 1 . Indirectly . | . . . Trap Hack Attempts . | . . . Triggered . | . . . Disarmed . | . . . Reprogrammed . | . . . Reused . | . . . Traps Extracted . | . . . Installed . | . . . Triggered . | . . . Machines | -11 -10 -10 ---------- Run | Yrd Mat Min Machines Disabled 1 | . 1 . Max in Single Turn 1 | . 1 . Machines Repaired . | . . . Machines Dismantled . | . . . Machines Sabotaged . | . . . Overloaded Fab Kills . | . . . Hacking | -11 -10 -10 --------- Run | Yrd Mat Min Machines Accessed 7 | . 7 . Terminals 7 | . 7 . Fabricators . | . . . Repair Stations . | . . . Recycling Units . | . . . Scanalyzers . | . . . Garrison Access . | . . . Total Hacks 15 | . 15 . Successful 8 | . 8 . Failed 7 | . 7 . Catastrophic . | . . . Database Lockouts . | . . . Manual 12 | . 12 . Terminals 15 | . 15 . Fabricators . | . . . Repair Stations . | . . . Recycling Units . | . . . Scanalyzers . | . . . Garrison Access . | . . . Terminal Hacks 2 | . 2 . Record 1 | . 1 . Prototype ID Bank 1 | . 1 . Fabricator Hacks . | . . . Repair Station Hacks . | . . . Recycling Unit Hacks . | . . . Scanalyzer . | . . . Garrison Access Hacks . | . . . Unauthorized Hacks 6 | . 6 . Terminals 6 | . 6 . Skim 6 | . 6 . Fabricators . | . . . Repair Stations . | . . . Recycling Units . | . . . Scanalyzers . | . . . Garrison Access . | . . . Data Cores Recovered . | . . . Used . | . . . Hacking Detections 5 | . 5 . Full Trace Events 2 | . 2 . Feedback Events . | . . . Feedback Blocked . | . . . Robot Schematics Acquired . | . . . Robots Built . | . . . Authchips . | . . . Time . | . . . Total Robot Build Rating . | . . . Part Schematics Acquired . | . . . Parts Built . | . . . Authchips . | . . . Time . | . . . Total Part Build Rating . | . . . Part Studies Acquired . | . . . Parts Repaired . | . . . Time . | . . . Parts Recycled . | . . . Recycled Matter . | . . . Retrieved Matter . | . . . Retrieved Components . | . . . Parts Scanalyzed . | . . . Part Schematics Acquired . | . . . Parts Damaged . | . . . Bothacking | -11 -10 -10 ------------ Run | Yrd Mat Min Used RIF Installer . | . . . Robots Hacked . | . . . Non-combat . | . . . Combat . | . . . Robot Hacks Applied . | . . . Relay Couplers Released . | . . . Fabnet Peak Effective % . | . . . Robots Rewired . | . . . Allies Hacked . | . . . Hacks Repelled . | . . . Allies | -11 -10 -10 -------- Run | Yrd Mat Min Total Allies . | . . . Largest Group . | . . . Highest-Rated Group . | . . . Highest-Rated Ally . | . . . Total Orders . | . . . Ally Attacks . | . . . Total Damage . | . . . Kills . | . . . Allies Corrupted . | . . . Allies Melted . | . . . Intel | -11 -10 -10 ------- Run | Yrd Mat Min Active Infowar (turns) 1292 | . 1219 73 Sensors 1292 | . 1219 73 Robot Analysis Total . | . . . Derelict Logs Recovered . | . . . Drone Launches . | . . . Drone Recoveries . | . . . Exploration | -11 -10 -10 ------------- Run | Yrd Mat Min Turns Passed 1610 | 115 1422 73 Spaces Moved 1012 | 58 929 25 Core 2 | 2 . . Treads 419 | 56 339 24 Legs . | . . . Wheels 591 | . 590 1 Hover . | . . . Flight . | . . . Fastest Speed 50 | 50 105 125 Average Speed 134 | 156 132 158 Slowest Speed 160 | 160 160 160 Overloaded Moves . | . . . Propulsion Burnouts . | . . . Robots Hopped . | . . . Potential Cave-ins . | . . . Cave-ins Triggered . | . . . Exploration Rate (%) 39 | 4 95 19 Regions Visited 2 Branch Regions 1 Pre-discovered Areas . | . . . Known Exits Taken . | . . . Unknown Exits Taken 2 | 1 1 . Scrap Searched . | . . . Spaces Dug . | . . . Terrain Destroyed 70 | . 10 60 Melee . | . . . Projectile . | . . . AOE 70 | . 10 60 Terrain Rammed . | . . . Walls Destroyed . | . . . Machines Disabled . | . . . Actions | -11 -10 -10 --------- Run | Yrd Mat Min Total 1150 | 76 1032 42 Wait 4 | . 4 . Move 1010 | 57 928 25 Hop . | . . . Pick Up 28 | 8 20 . Fast Attach 6 | 4 2 . Attach 10 | 2 4 4 Detach . | . . . Swap 14 | . 12 2 Drop 12 | . 12 . Fire 63 | 3 49 11 Melee . | . . . Ram . | . . . Kick . | . . . Crush 3 | 2 1 . Escape Stasis . | . . . Rewire . | . . . Trap . | . . . Miscellaneous . | . . . Route ------- -11/Scrapyard -10/Materials (discovered 4 exits: [*Mat x3] / [*Min]) -10/Mines History --------- Turn | Location | Event 35 | -11/Scrapyard | Discovered new exit (range 16) 116 | -11/Scrapyard | Entered Materials 117 | -10/Materials | Met a group of wandering Federalists 317 | -10/Materials | Build established: Mutant 430 | -10/Materials | Discovered new exit (range 10) 540 | -10/Materials | Discovered new exit (range 13) 779 | -10/Materials | Core integrity fell below 50% 798 | -10/Materials | Lost 3 parts (1p1n1w) 830 | -10/Materials | Discovered new exit (range 10) 1176 | -10/Materials | Discovered new exit (range 10) 1538 | -10/Materials | Entered Mines 1539 | -10/Mines | Assembled infested the area 1579 | -10/Mines | Destroyed 19 combat bots 1606 | -10/Mines | Core integrity fell below 20% 1611 | -10/Mines | Destroyed by D-53 Grenadier with Mini Grenade Launcher Last Messages --------------- 01552_ as-57878 destroyed. 01552_ as-42286 destroyed. 01554_ as-94059 destroyed. 01556_ as-95512 destroyed. 01558_ as-20173 destroyed. 01559_ The unstable cave ceiling collapses. 01562_ Acquired 6 matter. 01563_ T-07 Excavator is excavating. 01576_ The unstable cave ceiling collapses. 01578_ T-07 Excavator is excavating. 01581_ The unstable cave ceiling collapses. 01600_ C-45 Heavy ARC bursts open, deploying its payload. 01600_ D-53 Grenadier unfolds itself. 01600_ U-05 Engineer lays Concrete. 01602_ T-07 Excavator destroyed. 01602_ U-05 Engineer destroyed. 01605_ Lgt. Assault Rifle destroyed. 01605_ Lgt. Treads destroyed. 01606_ Grenade Launcher destroyed. 01609_ The unstable cave ceiling collapses. Map ----- +----------------------------------------------------+ | ??????????????????????????????????????????##?????? | | ???????????????????????????????????????## #?????? | | ???????????????????????????????####???# #?????? | | ?????????????????????????????### #### #?????? | | ?????????????????????????????# ###???? | | ?????????????????????????????# #??? | | ?????????????????????????????# ? | | ???????????????????????# ##### ## """??? | | ???????????????????????# #??? ""???? | | ???????????????????????###### ##?????? ""???? | | ????????????????????????### # #?????????????? | | ????????????????????????# #?????????????? | | ????????????????????????# ##????????????? | | ????????????????????##### # # #????????????? | | ???????????????????## # ###????????????? | | ???????????????????# #?????????????? | | ???????????????????# # ##### #????????? | | ??????????????????## < #????????? | | ?????????????????## ### ###### #????????? | | ?????????????????# #?### #???????????????? | | ????????????????# ##??# #???????????????? | | ????????????????? ## ##?# #???????????????? | | ????????????????? ## ### #???????????????? | | ?????????????????? ?# #???????????????? | | ????????????????????# #???????????????? | | ????????????????????# @ ####???????????????? | | ????????????????????# #????????????????? | | ????????????????????# #??????????????? | | ????????????????????## #??????????????? | | ?????????????????????# d #??????????????? | | ????????????????????# % #??????????????? | | ???????????????????# d #?????????????? | | ???????????????????# #?????????????? | | ???????????????????## # #?????????????? | | ????????????????????### $#### ##?????????????? | | ??????????????????????## #????# ??????????????? | | ???????????????????????# ??????# ?????????????? | | ???????????????????????# ???????# ??????????????? | | ???????????????????????# ????????????????????????? | | ???????????????????????? ????????????????????????? | | ???????????????????????? ????????????????????????? | | ?????????????????????????????????????????????????? | | ?????????????????????????????????????????????????? | | ?????????????????????????????????????????????????? | | ?????????????????????????????????????????????????? | | ?????????????????????????????????????????????????? | | ?????????????????????????????????????????????????? | | ?????????????????????????????????????????????????? | | ?????????????????????????????????????????????????? | | ?????????????????????????????????????????????????? | +----------------------------------------------------+ Best States ------------- Heat Dissipation 25 Energy Generation 12 Energy Capacity 265 Matter Stores 300 Matter Capacity 300 Sight Range 16 Robot Scan Range 14 Terrain Scan Density 10 Evasion (%) 40 Recoil Reduction 2 Item Schematics ----------------- None Robot Schematics ------------------ None Fabricated ------------ Nothing Repaired ---------- Nothing Studied --------- None Alien Tech Used ----------------- None Achievements -------------- None Challenges ------------ None Game ------ Seed AlertBiomechanicalSlamshotty Manual? 0 Play Time 00:18:27 Cumulative 287.3 hours Start 2026.07.31 @ 17:53:36 End 2026.07.31 @ 18:10:30 Sessions 1 Manual Loads 0 Difficulty Rogue Special Mode None Game No. 108 Rogue 108 Adventurer 0 Explorer 0 Win Type - Total 3 Types 1/0/1/0/0/0/1/0/0/0 Lore% 39 Gallery% 60 Achievement% 41 Wizard Run 0 Options --------- Layout 0 ASCII 1 Keyboard 1 Movement Numpad Keybinds 0 Fullscreen 1 Font 36/Smallcaps Map View 76x50 Zoom Use 0% Tactical HUD 1 Map Filters NONE Filters NONE Steam 1 RUN: d25dc9ef-6c37-4822-a028-2bf472f17a8c